bitfinex/quotes_ETHUSD_20241030
["timestamp","ask_amount","ask_price","bid_price","bid_amount"]
[1730319686434,3.84135987,2655.3,2654.9,0.0063]
[1730319686807,0.07529987,2655.3,2654.9,3.77283]
[1730319687224,0.07529987,2655.3,2654.9,0.0063]
[1730319687527,3.76614,2655.3,2654.9,0.0063]
[1730319687731,0.07529987,2655.2,2654.9,0.0063]
[1730319688031,0.07529987,2655.2,2654.9,3.77289]
[1730319688190,0.07529987,2655.2,2654.9,0.0063]
[1730319688387,0.07529987,2655.6,2655.3,0.0063]
[1730319688622,3.84083987,2655.7,2655.3,0.0063]
[1730319688822,3.7657,2655.6,2655.3,0.0063]
[1730319689026,0.07529987,2655.5,2655.3,0.0063]
[1730319689994,3.84113987,2655.5,2655.3,0.0063]
[1730319690195,7.60698987,2655.5,2655.3,0.0063]
[1730319690394,3.76591,2655.4,2655.0,0.0063]
[1730319690602,3.84140987,2655.3,2655.0,0.0063]
[1730319690937,3.76619,2655.2,2655.0,0.0063]
[1730319691234,3.76619,2655.2,2654.8,0.0063]
[1730319691235,0.07529987,2655.1,2654.8,0.0063]
[1730319691532,3.84163987,2655.1,2654.8,0.0063]
[1730319692522,3.76566,2655.6,2655.2,3.77248]
[1730319692523,3.76564,2655.6,2655.2,3.77248]
[1730319692711,0.07529987,2655.5,2655.3,1.5114]
[1730319693211,0.07529987,2655.6,2655.3,1.5114]
[1730319693623,3.84102987,2655.6,2655.1,1.5114]
[1730319693811,0.07529987,2655.6,2655.3,0.0063]
[1730319694701,3.84094987,2655.6,2655.3,0.0063]
[1730319694900,3.76586,2655.5,2655.1,1.5177]
[1730319695143,3.76619,2655.2,2654.9,0.0063]
[1730319695299,3.84148987,2655.2,2654.9,0.0063]
[1730319695501,0.07529987,2655.2,2654.9,0.0063]
[1730319695947,3.76636,2655.1,2654.9,0.0063]
[1730319696103,0.07529987,2655.0,2654.9,0.0063]
[1730319696303,3.84176987,2655.0,2654.9,0.0063]
[1730319697704,3.84176987,2655.0,2654.6,5.35063]
[1730319698049,3.84176987,2655.0,2654.3,1.3551]
[1730319698050,0.55,2654.7,2654.3,1.3551]
[1730319698339,3.76732,2654.4,2654.3,1.3488]
[1730319698654,4.39261987,2654.4,2654.3,1.3488]
[1730319698815,6.02681987,2654.4,2654.3,1.3488]
[1730319701949,9.68013218,2654.4,2654.3,1.3488]
[1730319702118,9.60483231,2654.4,2654.3,1.3488]
[1730319702632,12.60483231,2654.4,2654.3,1.3488]
[1730319703042,13.57637368,2654.4,2654.3,1.3488]
[1730319703208,12.60853231,2654.4,2654.3,1.3488]
[1730319703940,12.60483231,2654.4,2654.3,1.3488]
[1730319704707,12.60853231,2654.4,2654.3,1.3488]
[1730319705047,12.60483231,2654.4,2654.3,1.3488]
[1730319706151,9.60483231,2654.4,2654.3,1.3488]
[1730319709480,3.76718,2654.5,2654.3,1.3488]
[1730319709685,0.07529987,2654.4,2654.3,1.3488]
[1730319711076,0.07529987,2654.5,2654.3,1.3488]
[1730319711478,3.84251987,2654.5,2654.3,1.3488]
[1730319711939,0.07529987,2654.5,2654.3,1.3488]
[1730319712129,3.84247987,2654.5,2654.3,2.9624]
[1730319712964,0.07529987,2654.5,2654.3,2.9624]
[1730319713176,3.84248987,2654.5,2654.3,2.9624]
[1730319716949,0.55,2654.4,2654.3,2.9624]
[1730319719663,4.31732,2654.4,2654.3,2.9624]
[1730319719862,4.31732,2654.4,2654.3,1.3488]
[1730319720066,0.62529987,2654.4,2654.3,1.3488]
[1730319720687,0.55,2654.4,2654.3,1.3488]
[1730319722498,1.521,2655.2,2654.4,1.5973]
[1730319722663,3.76671,2654.9,2654.5,0.0063]
[1730319722868,3.76661,2655.0,2654.5,3.77346]
[1730319723161,0.07529987,2654.9,2654.6,3.76696]
[1730319723346,0.07529987,2654.9,2654.6,4.680732]
[1730319723554,0.07529987,2655.1,2654.7,3.76689]
[1730319723852,3.76593,2655.4,2655.0,0.0063]
[1730319724051,0.07529987,2655.3,2655.1,3.76632]
[1730319724251,0.07529987,2655.4,2655.1,3.76632]
[1730319725455,0.55,2655.3,2655.1,3.76632]
[1730319726492,0.55,2655.4,2655.1,4.679916]
[1730319727764,0.55,2655.4,2655.1,0.913646]
[1730319727992,0.55,2655.4,2655.1,4.679976]
[1730319728196,0.55,2655.4,2655.1,8.446236]
[1730319728523,0.55,2655.4,2655.1,4.679906]
[1730319729026,0.55,2655.4,2655.2,0.4686206]
[1730319729702,0.07529987,2655.5,2655.3,1.5537]
[1730319729891,3.76491,2656.2,2655.7,0.0063]
[1730319730244,3.76436,2656.5,2656.0,1.5474]
[1730319730390,3.83985987,2656.4,2656.0,1.5474]
[1730319730581,0.07529987,2656.4,2656.0,5.31245]
[1730319732221,0.55,2656.3,2656.0,6.220838]
[1730319732385,0.55,2656.3,2656.1,3.76491]
[1730319732586,0.55,2656.3,2656.0,6.220828]
[1730319732786,3.0,2656.9,2656.0,6.220828]
[1730319732787,3.76346,2657.2,2656.6,3.7641]
[1730319733025,0.07529987,2657.2,2656.7,3.77034]
[1730319733315,5.44437987,2657.6,2657.0,0.0063]
[1730319733629,5.44437987,2657.6,2657.0,3.76993]
[1730319733630,3.763,2657.5,2657.0,3.76993]
[1730319733786,0.07529987,2657.4,2657.0,3.76993]
[1730319733992,0.07529987,2657.5,2657.2,0.0063]
[1730319734241,3.83802987,2657.7,2657.2,3.76965]
[1730319734585,3.76258,2657.8,2657.2,3.76965]
[1730319734802,0.07529987,2657.9,2657.6,0.0063]
[1730319735311,0.83018361,2658.1,2657.6,0.0063]
[1730319735514,3.96420607,2658.1,2657.6,0.0063]
[1730319735715,3.76251,2657.8,2657.7,1.5083]
[1730319735922,3.76251,2657.8,2657.4,0.07525189]
[1730319735923,3.76251,2657.8,2657.4,1.5146]
[1730319736127,0.07529987,2657.8,2657.7,1.5109]
[1730319736295,0.1268262,2658.1,2657.8,0.0063]
[1730319737235,0.1268262,2658.1,2658.0,0.0063]
[1730319737911,0.1268262,2658.1,2658.0,3.76852]
[1730319738231,0.1268262,2658.1,2658.0,6.16301]
[1730319738442,0.1268262,2658.1,2658.0,6.23823399]
[1730319738595,0.07529987,2659.1,2658.1,1.6414]
[1730319738798,0.07529987,2659.1,2658.7,1.6477]
[1730319739001,3.76048,2659.3,2658.7,1.6477]
[1730319739322,3.83577987,2659.3,2658.7,5.40892]
[1730319739509,3.83577987,2659.3,2659.0,0.0063]
[1730319739510,0.07529987,2659.3,2659.0,0.0063]
[1730319739693,3.76046,2659.3,2659.0,0.0063]
[1730319739900,0.49115596,2659.2,2659.0,0.0063]
[1730319740238,3.83545987,2659.5,2659.0,3.65961231]
[1730319740445,3.75979,2659.8,2659.6,0.0063]
[1730319740628,0.07529987,2659.7,2659.6,0.0063]
[1730319741014,3.75999,2659.6,2659.4,0.0063]
[1730319741230,3.7609,2659.0,2658.7,1.5737]
[1730319741452,0.07529987,2659.4,2658.9,0.0063]
[1730319741752,0.55,2659.0,2658.9,0.0063]
[1730319742106,3.7606,2659.2,2658.9,0.0063]
[1730319742107,0.55,2659.1,2658.9,0.0063]
[1730319742644,0.62529987,2659.3,2658.9,0.0063]
[1730319743357,0.62529987,2659.3,2658.7,12.74299231]
[1730319743358,0.55,2659.3,2659.2,0.0063]
[1730319743667,4.31038,2659.3,2659.0,0.0063]
[1730319744022,0.62529987,2659.3,2659.0,0.0063]
[1730319744349,0.55,2659.1,2659.0,0.0063]
[1730319744733,0.55,2659.2,2659.0,0.0063]
[1730319745236,0.55,2659.2,2658.6,7.41467231]
[1730319745237,0.55,2658.9,2658.6,0.0063]
[1730319745457,0.07529987,2659.1,2658.4,1.5737]
[1730319745458,0.55,2658.5,2658.4,1.5737]
[1730319745635,0.55,2658.5,2658.4,0.0063]
[1730319746166,0.55,2658.5,2658.1,1.5737]
[1730319746167,3.76194,2658.2,2658.1,1.5737]
[1730319746365,3.76194,2658.2,2657.9,0.0063]
[1730319746366,3.76236,2658.0,2657.9,0.0063]
[1730319746541,0.55,2658.0,2657.9,0.0063]
[1730319746874,0.55,2657.9,2657.5,0.0063]
[1730319747028,3.76279,2657.6,2657.5,0.0063]
[1730319747226,4.31293,2657.5,2657.3,0.0063]
[1730319747435,3.76307,2657.4,2657.3,0.0063]
[1730319747638,3.76307,2657.4,2657.1,0.0063]
[1730319747639,0.55,2657.2,2657.1,0.0063]
[1730319748427,0.55,2657.1,2656.9,0.0063]
[1730319748626,0.55,2657.1,2656.9,3.77007]
[1730319748841,0.55,2657.3,2656.9,0.0063]
[1730319749164,0.55,2657.1,2656.9,0.0063]
[1730319749734,4.3136,2657.1,2656.8,0.0063]
[1730319749932,0.55,2656.9,2656.4,5.35182]
[1730319750258,0.55,2656.9,2656.7,0.0063]
[1730319750667,0.55,2656.8,2656.7,0.0063]
[1730319750823,0.55,2656.8,2656.4,1.5874]
[1730319750824,0.55,2656.6,2656.5,0.0063]
[1730319751024,0.55,2656.6,2656.2,0.0063]
[1730319751025,4.31432,2656.6,2656.2,0.0063]
[1730319752232,0.55,2656.6,2656.2,0.0063]
[1730319752427,3.7637,2657.0,2656.5,0.0063]
[1730319752749,0.55,2656.9,2656.5,0.0063]
[1730319752948,0.55,2656.9,2656.5,3.77061]
[1730319752949,0.62529987,2656.9,2656.5,3.77061]
[1730319753162,0.55,2656.9,2656.5,7.53492]
[1730319753365,0.55,2656.9,2656.5,3.77061]
[1730319753575,7.52637,2657.4,2656.9,0.0063]
[1730319753864,3.76359,2657.1,2656.7,0.0063]
[1730319754067,0.07529987,2657.0,2656.7,0.0063]
[1730319754570,3.83887987,2657.1,2656.7,0.0063]
[1730319755066,0.55,2657.0,2656.7,0.0063]
[1730319755473,0.55,2657.1,2656.7,0.0063]
[1730319755772,0.55,2657.1,2656.8,3.76392]
[1730319755940,0.55,2657.1,2656.7,3.77024]
[1730319756130,0.55,2657.1,2656.7,7.53422]
[1730319756573,5.88283957,2657.6,2657.1,0.0063]
[1730319756574,1.636,2657.6,2657.1,0.0063]
[1730319756747,3.83815987,2657.6,2657.1,3.76978]
[1730319757360,3.76294,2657.5,2657.1,0.0063]
[1730319757534,0.07529987,2657.4,2657.1,0.0063]
[1730319757735,3.83848987,2657.4,2657.1,0.0063]
[1730319757931,3.76346,2657.2,2656.9,0.0063]
[1730319758135,0.07529987,2657.2,2656.9,0.0063]
[1730319758430,0.55,2657.1,2656.9,0.0063]
[1730319759066,0.55,2657.1,2656.7,0.0063]
[1730319759335,0.55,2657.1,2656.5,1.59]
[1730319759336,0.55,2656.9,2656.6,0.0063]
[1730319759735,4.31382,2656.9,2656.6,0.0063]
[1730319760157,0.55,2656.7,2656.4,0.0063]
[1730319760867,4.24683957,2657.0,2656.4,0.0063]
[1730319760868,4.31435,2656.5,2656.4,0.0063]
[1730319761836,0.55,2656.6,2656.4,0.0063]
[1730319763367,0.55,2656.9,2656.7,0.0063]
[1730319763578,0.62529987,2657.1,2656.7,0.0063]
[1730319763941,4.38879987,2657.1,2656.7,0.0063]
[1730319764476,0.55,2656.9,2656.7,0.0063]
[1730319765344,0.55,2657.1,2656.9,0.0063]
[1730319765572,3.76318,2657.4,2656.9,0.0063]
[1730319765775,0.07529987,2657.3,2656.9,0.0063]
[1730319766094,0.07529987,2657.3,2656.9,3.77008]
[1730319766282,0.07529987,2657.5,2657.1,0.0063]
[1730319766488,3.83790987,2657.8,2657.3,0.0063]
[1730319766676,3.76315,2657.4,2657.1,1.5258]
[1730319767062,3.76289,2657.6,2657.1,1.5258]
[1730319767263,0.07529987,2657.5,2657.1,5.28926]
[1730319767599,3.76265,2657.7,2657.4,0.0063]
[1730319767803,0.07529987,2657.8,2657.6,0.0063]
[1730319768003,1.59969987,2657.9,2657.6,0.0063]
[1730319768204,5.36215987,2657.9,2657.6,0.0063]
[1730319768695,5.36207987,2657.9,2657.6,0.0063]
[1730319769776,3.76253,2657.8,2657.6,0.0063]
[1730319770179,0.55,2657.7,2657.6,0.0063]
[1730319770474,0.55,2657.8,2657.6,0.0063]
[1730319770672,4.31252,2657.8,2657.4,0.0063]
[1730319770894,0.55,2657.6,2657.4,0.0063]
[1730319772475,0.55,2657.6,2657.5,5.30463]
[1730319773613,0.55,2657.6,2657.5,6.213022]
[1730319773969,0.07529987,2658.2,2657.9,0.0063]
[1730319774373,0.07529987,2658.4,2657.9,3.76856]
[1730319774580,3.83702987,2658.4,2658.1,0.0063]
[1730319774805,0.07529987,2658.4,2658.1,1.6227]
[1730319775400,3.76188,2658.3,2658.1,1.6227]
[1730319775788,0.55,2658.3,2658.1,1.6227]
[1730319776103,0.55,2658.4,2658.1,1.6227]
[1730319776305,0.55,2658.2,2658.1,0.0063]
[1730319777463,0.62529987,2658.4,2658.1,0.0063]
[1730319777908,4.38696987,2658.4,2658.1,0.0063]
[1730319779321,0.55,2658.0,2657.6,0.0063]
[1730319779503,0.62529987,2658.0,2657.6,0.0063]
[1730319779673,4.38752987,2658.0,2657.6,3.76909]
[1730319780008,4.38752987,2658.0,2657.6,0.0063]
[1730319780190,8.14985987,2658.0,2657.6,0.0063]
[1730319780391,8.14985987,2658.0,2657.1,3.76344]
[1730319780392,8.55891957,2658.1,2657.4,0.0063]
[1730319780606,0.55,2657.6,2657.4,0.0063]
[1730319781481,4.31281,2657.6,2657.4,0.0063]
[1730319781906,0.55,2657.6,2657.4,0.0063]
[1730319782109,0.55,2657.8,2657.4,0.0063]
[1730319782324,4.31252,2657.8,2657.4,3.76929]
[1730319782619,4.31289,2657.6,2657.2,1.514]
[1730319782981,0.55,2657.4,2657.2,5.27734]
[1730319783185,0.55,2657.4,2657.2,0.0063]
[1730319783387,4.31321,2657.3,2657.2,0.0063]
[1730319783619,4.38850987,2657.3,2657.2,0.0063]
[1730319783990,0.62529987,2657.3,2657.2,0.0063]
[1730319784360,0.62529987,2657.3,2656.9,1.5077]
[1730319784361,0.55,2657.6,2657.4,0.0063]
[1730319784510,4.3128,2657.6,2657.4,0.0063]
[1730319785021,0.55,2657.6,2657.4,0.0063]
[1730319785408,4.31283,2657.6,2657.4,0.0063]
[1730319786219,4.38812987,2657.6,2657.4,0.0063]
[1730319787214,4.31283,2657.6,2657.4,0.0063]
[1730319787414,0.07529987,2657.5,2657.2,0.0063]
[1730319787590,0.55,2657.4,2657.2,0.0063]
[1730319788529,4.3132,2657.4,2657.2,0.0063]
[1730319788701,8.56003957,2657.4,2657.2,0.0063]
[1730319789035,8.56003957,2657.4,2656.6,1.5077]
[1730319789036,4.31378,2656.9,2656.8,0.0063]
[1730319790127,0.55,2656.9,2656.8,0.0063]
[1730319790326,3.0,2657.8,2656.8,0.0063]
[1730319790327,0.55,2657.1,2656.8,0.0063]
[1730319790532,0.55,2656.9,2656.8,0.0063]
[1730319791192,0.62529987,2656.9,2656.6,1.514]
[1730319791527,4.31406,2656.7,2656.6,1.514]
[1730319792730,0.55,2656.9,2656.6,1.514]
[1730319792934,0.55,2656.9,2656.6,2.04936698]
[1730319793134,4.31385,2656.9,2656.6,2.04936698]
[1730319794128,3.76289,2657.6,2657.3,0.0063]
[1730319794343,3.76301,2657.5,2657.3,0.0063]
[1730319794698,3.76307,2657.4,2657.3,0.0063]
[1730319795234,3.7635,2657.1,2657.0,1.6185]
[1730319795606,0.55,2657.1,2657.0,1.6185]
[1730319796409,3.7629,2657.6,2657.3,0.0063]
[1730319796938,7.52582,2657.6,2657.3,0.0063]
[1730319797539,3.76296,2657.5,2657.3,0.0063]
[1730319797742,4.31307,2657.4,2657.3,0.0063]
[1730319798451,4.31307,2657.4,2657.0,1.6122]
[1730319798452,3.76331,2657.3,2657.1,0.0063]
[1730319798627,4.31335,2657.2,2657.1,0.0063]
[1730319799307,0.55,2657.2,2657.1,0.0063]
[1730319799748,4.31335,2657.2,2657.1,0.0063]
[1730319800547,0.55,2657.2,2657.1,0.0063]
[1730319801623,4.31364,2657.0,2656.9,0.0063]
[1730319802127,0.55,2657.1,2656.9,0.0063]
[1730319803015,3.76301,2657.5,2657.3,0.0063]
[1730319803229,5.36274,2658.3,2657.6,1.5697]
[1730319803464,3.76197,2658.2,2657.9,0.0063]
[1730319803627,1.6009,2658.3,2657.9,0.0063]
[1730319803826,3.76218,2658.1,2657.9,0.0063]
[1730319804032,3.76196,2658.2,2657.9,0.0063]
[1730319804236,3.76216,2658.1,2657.9,0.0063]
[1730319804437,3.76131,2658.7,2658.5,0.0063]
[1730319804665,3.76137,2658.6,2658.5,0.0063]
[1730319804863,3.76124,2658.7,2658.5,0.0063]
[1730319805165,7.52209,2658.9,2658.5,0.0063]
[1730319805368,3.7612,2658.8,2658.5,0.0063]
[1730319805527,3.76127,2658.7,2658.5,0.0063]
[1730319806033,0.07529987,2658.6,2658.4,0.0063]
[1730319806261,3.76123,2658.7,2658.6,0.0063]
[1730319806829,3.76106,2658.9,2658.6,0.0063]
[1730319807034,3.76092,2659.0,2658.6,0.0063]
[1730319807232,1.6088,2659.5,2658.9,0.0063]
[1730319807432,3.75983,2659.7,2659.4,0.0063]
[1730319807728,3.83512987,2659.7,2659.4,0.0063]
[1730319808366,0.07529987,2659.7,2659.2,1.6491]
[1730319808569,3.76052,2659.2,2659.1,0.0063]
[1730319808867,0.55,2659.2,2659.1,0.0063]
[1730319809073,4.31052,2659.2,2659.1,0.0063]
[1730319810873,3.76078,2659.1,2658.9,0.0063]
[1730319811080,0.55,2659.0,2658.9,0.0063]
[1730319811658,4.31081,2659.0,2658.9,0.0063]
[1730319811855,4.31081,2659.0,2658.7,0.0063]
[1730319811856,0.55,2658.8,2658.7,0.0063]
[1730319812187,4.38638987,2658.8,2658.7,0.0063]
[1730319812480,1.5904,2659.9,2659.3,0.0063]
[1730319812678,3.7592,2660.2,2659.8,0.0063]
[1730319812841,0.07529987,2660.1,2659.8,0.0063]
[1730319813043,4.31998167,2660.1,2659.4,1.5156]
[1730319813270,3.75968,2659.8,2659.4,1.5156]
[1730319813574,3.75968,2659.8,2659.4,2.043203]
[1730319813739,3.75968,2659.8,2659.4,1.5156]
[1730319813938,3.75994,2659.7,2659.4,1.5156]
[1730319814417,0.55,2659.6,2659.4,1.5156]
[1730319814680,4.30989,2659.7,2659.4,0.0063]
[1730319814881,0.55,2659.5,2659.4,0.0063]
[1730319815874,4.30984,2659.7,2659.4,0.0063]
[1730319816279,0.55,2659.5,2659.4,0.0063]
[1730319816589,0.55,2659.7,2659.6,0.0063]
[1730319816806,0.55,2659.8,2659.6,0.0063]
[1730319816965,0.55,2659.9,2659.6,0.0063]
[1730319817345,0.55,2660.1,2659.8,0.0063]
[1730319817557,0.55,2659.9,2659.8,0.0063]
[1730319817758,0.07529987,2660.2,2659.8,4.2509818]
[1730319817990,0.1268262,2660.7,2660.6,1.5318]
[1730319818162,0.1268262,2660.7,2660.6,5.29035]
[1730319818360,0.1268262,2660.7,2660.6,5.819385]
[1730319818560,0.1268262,2660.7,2660.6,5.8945419]
[1730319818761,0.1268262,2660.7,2660.6,2.060835]
[1730319818971,0.1268262,2660.7,2660.6,5.89454279]
[1730319819672,0.1268262,2660.7,2660.6,5.819385]
[1730319819673,0.6768262,2660.7,2660.6,5.819385]
[1730319819887,0.6768262,2660.7,2660.6,5.89454271]
[1730319819888,0.1268262,2660.7,2660.6,5.89454271]
[1730319820951,0.1268262,2660.7,2660.6,5.819385]
[1730319821152,0.1268262,2660.7,2660.6,0.0063]
[1730319822447,0.6768262,2660.7,2660.6,0.0063]
[1730319823298,0.6768262,2660.7,2660.6,3.76485]
[1730319823789,0.6768262,2660.7,2660.6,0.0063]
[1730319826190,0.6768262,2660.7,2660.4,0.0063]
[1730319826191,4.30869,2660.5,2660.4,0.0063]
[1730319826402,4.30897,2660.3,2660.2,0.0063]
[1730319826686,4.30897,2660.3,2659.5,3.76]
[1730319826687,4.30925,2660.1,2660.0,0.0063]
[1730319827190,0.62529987,2660.1,2660.0,0.0063]
[1730319827406,0.55,2660.1,2660.0,0.0063]
[1730319827751,3.75912,2660.2,2660.0,0.0063]
[1730319827950,0.55,2660.1,2660.0,0.0063]
[1730319829083,0.1268262,2660.7,2660.6,1.6099]
[1730319829256,0.1268262,2660.7,2660.6,5.44360877]
[1730319829455,0.1268262,2660.7,2660.6,6.36446765]
[1730319829655,0.1268262,2660.7,2660.6,0.92085888]
[1730319829855,0.1268262,2660.7,2660.5,0.0063]
[1730319831192,0.55,2660.6,2660.5,0.0063]
[1730319832060,0.55,2660.6,2660.3,0.0063]
[1730319832282,4.30864,2660.6,2660.3,0.0063]
[1730319832517,0.55,2660.4,2660.3,0.0063]
[1730319832802,3.75897,2660.3,2660.1,0.0063]
[1730319832963,0.55,2660.2,2660.1,0.0063]
[1730319833367,0.55,2660.4,2660.1,0.0063]
[1730319835094,0.55,2660.2,2660.1,0.0063]
[1730319835801,4.30905,2660.3,2660.1,0.0063]
[1730319836012,0.55,2660.3,2660.1,3.76553]
[1730319836178,0.55,2660.3,2660.1,0.0063]
[1730319837606,0.55,2660.3,2660.1,3.76555]
[1730319838207,3.8852762,2660.7,2660.5,0.0063]
[1730319838208,5.5038062,2660.7,2660.5,0.0063]
[1730319838414,5.5038062,2660.7,2660.3,0.0063]
[1730319838415,5.57910607,2660.7,2660.3,0.0063]
[1730319838616,3.75855,2660.6,2660.5,0.0063]
[1730319838914,1.82062607,2660.7,2660.4,0.0063]
[1730319839072,0.20212607,2660.7,2660.4,0.0063]
[1730319839272,0.55,2660.6,2660.4,0.75873]
[1730319839504,0.55,2660.6,2660.4,4.51755]
[1730319839682,0.55,2660.6,2660.4,0.75873]
[1730319840284,0.55,2660.6,2660.4,0.0063]
[1730319840741,3.75869,2660.5,2660.4,0.0063]
[1730319840909,4.30869,2660.5,2660.4,0.0063]
[1730319841112,0.55,2660.5,2660.4,0.0063]
[1730319841426,0.55,2660.5,2660.2,0.0063]
[1730319841631,0.55,2660.3,2660.2,0.0063]
[1730319841794,0.55,2660.3,2660.0,0.0063]
[1730319841991,3.75983,2659.7,2659.5,0.0063]
[1730319842231,0.55,2659.6,2659.5,3.7664]
[1730319842527,0.55,2659.6,2659.5,4.68416181]
[1730319842838,5.39214,2660.3,2660.0,0.0063]
[1730319843052,0.55,2660.4,2660.0,5.3717026]
[1730319843198,0.1268262,2660.7,2660.6,0.0063]
[1730319844405,3.8852262,2660.7,2660.6,0.0063]
[1730319844606,4.51052607,2660.7,2660.6,0.0063]
[1730319845235,4.4352262,2660.7,2660.6,0.0063]
[1730319845835,0.1268262,2660.7,2660.6,0.0063]
[1730319845993,3.8852262,2660.7,2660.6,0.0063]
[1730319846526,3.8852262,2660.7,2660.5,0.0063]
[1730319847298,0.55,2660.6,2660.5,0.0063]
[1730319847629,0.55,2660.4,2660.3,0.0063]
[1730319847796,4.30883,2660.4,2660.3,0.0063]
[1730319847997,4.30925,2660.1,2660.0,0.0063]
[1730319848239,4.30982,2659.7,2659.6,0.0063]
[1730319848420,4.30997,2659.6,2659.4,0.0063]
[1730319848644,4.3101,2659.5,2659.4,0.0063]
[1730319849023,1.5743,2659.4,2659.2,0.0063]
[1730319849332,0.55,2658.9,2658.8,0.0063]
[1730319850338,4.31095,2658.9,2658.8,0.0063]
[1730319850934,0.55,2658.9,2658.6,0.0063]
[1730319851141,3.76117,2658.8,2658.6,0.0063]
[1730319851440,0.55,2658.7,2658.6,0.0063]
[1730319851599,0.55,2659.1,2658.8,0.0063]
[1730319851800,9.2446818,2661.1,2659.0,0.0063]
[1730319851801,0.55,2659.4,2659.0,0.0063]
[1730319852007,4.31027,2659.4,2659.0,0.62926387]
[1730319852526,0.55,2659.4,2659.0,0.62926387]
[1730319852721,0.55,2659.5,2659.3,0.0063]
[1730319853047,4.31018,2659.5,2659.3,0.0063]
[1730319853511,3.75961,2659.9,2659.6,0.0063]
[1730319853712,1.64959987,2660.0,2659.6,0.0063]
[1730319853915,3.75957,2659.9,2659.6,0.0063]
[1730319854115,7.5192,2659.9,2659.6,0.0063]
[1730319854542,3.7601,2659.5,2659.4,0.0063]
[1730319854749,4.2446818,2659.7,2659.4,0.0063]
[1730319855039,0.55,2659.5,2659.4,0.0063]
[1730319855344,0.55,2659.0,2658.8,0.0063]
[1730319855652,3.76073,2659.1,2658.8,0.0063]
[1730319855653,4.31097,2658.9,2658.8,0.0063]
[1730319855837,0.55,2658.9,2658.8,0.0063]
[1730319856036,0.55,2659.0,2658.8,0.0063]
[1730319857532,4.31082,2659.0,2658.8,0.0063]
[1730319858322,0.55,2659.0,2658.8,0.0063]
[1730319858736,4.31081,2659.0,2658.8,0.0063]
[1730319859042,0.55,2659.2,2658.8,3.76732]
[1730319859235,0.55,2659.3,2659.1,0.0063]
[1730319859876,4.31038,2659.3,2659.1,0.0063]
[1730319860180,0.55,2659.3,2659.1,0.0063]
[1730319860743,4.38539987,2659.5,2659.1,0.0063]
[1730319861048,4.3104,2659.3,2659.1,0.0063]
[1730319861247,0.55,2659.1,2658.8,0.0063]
[1730319861551,0.55,2659.1,2659.0,0.0063]
[1730319861971,4.31067,2659.1,2659.0,0.0063]
[1730319862179,4.31067,2659.1,2658.8,0.0063]
[1730319862476,4.31095,2658.9,2658.8,0.0063]
[1730319862679,0.55,2658.9,2658.8,0.0063]
[1730319863188,4.31123,2658.7,2658.6,0.0063]
[1730319863895,4.31123,2658.7,2658.4,1.5872]
[1730319863896,0.55,2658.6,2658.4,0.0063]
[1730319865386,0.55,2658.6,2658.1,5.34917]
[1730319865387,4.31137,2658.6,2658.2,3.76822]
[1730319865599,4.38666987,2658.6,2658.2,0.0063]
[1730319866171,0.55,2658.6,2658.4,0.0063]
[1730319867029,4.31144,2658.6,2658.4,0.0063]
[1730319867299,0.55,2658.8,2658.6,0.0063]
[1730319867477,4.31118,2658.8,2658.6,0.0063]
[1730319867676,0.55,2658.8,2658.6,0.0063]
[1730319868175,0.55,2658.9,2658.6,0.0063]
[1730319868675,4.31097,2658.9,2658.6,0.0063]
[1730319869074,5.27816,2659.4,2659.0,0.0063]
[1730319869692,9.11378987,2659.4,2659.0,0.0063]
[1730319869907,3.76011,2659.5,2659.0,3.76706]
[1730319870700,3.76048,2659.3,2659.1,0.0063]
[1730319870916,3.76029,2659.4,2659.1,0.0063]
[1730319871417,3.76029,2659.4,2658.9,3.76086]
[1730319871418,3.76052,2659.2,2658.9,0.0063]
[1730319871578,3.76052,2659.2,2659.1,0.0063]
[1730319871778,0.55,2659.2,2659.1,0.0063]
[1730319871974,4.31026,2659.4,2659.1,0.0063]
[1730319872248,4.31026,2659.4,2659.1,0.759097]
[1730319872453,3.75993,2659.7,2659.4,0.0063]
[1730319872727,3.83493987,2659.9,2659.4,0.0063]
[1730319872896,5.32996,2660.1,2659.6,0.0063]
[1730319873217,5.32996,2660.1,2659.4,0.07520158]
[1730319873218,3.7594,2660.0,2659.8,0.0063]
[1730319875224,0.55,2659.9,2659.8,0.0063]
[1730319876506,0.55,2660.0,2659.8,0.0063]
[1730319876835,4.30949,2660.0,2659.8,0.0063]
[1730319876997,4.30953,2659.9,2659.8,0.0063]
[1730319877508,4.30953,2659.9,2658.8,3.0]
[1730319877509,0.55,2659.4,2659.2,0.0063]
[1730319878126,0.55,2659.4,2659.3,3.76038]
[1730319878341,0.55,2659.4,2659.3,4.513089]
[1730319878919,0.55,2659.6,2659.3,0.752709]
[1730319879257,4.31038,2659.3,2659.2,0.0063]
[1730319880205,4.31025,2659.4,2659.2,0.00488676]
[1730319880825,0.55,2659.4,2659.2,0.00488676]
[1730319881626,0.55,2659.6,2659.2,3.76532676]
[1730319882218,0.55,2659.7,2659.2,4.66936944]
[1730319882548,0.55,2659.5,2659.2,3.76539676]
[1730319883042,0.55,2659.7,2659.2,7.52580676]
[1730319883206,4.30983,2659.7,2659.3,3.76038]
[1730319883543,0.55,2659.7,2659.3,3.76038]
[1730319884243,0.55,2659.7,2659.2,3.76529676]
[1730319884643,0.55,2659.5,2659.2,3.76529676]
[1730319885151,0.55,2659.3,2659.2,0.00488676]